[Event "Titled Tuesday Blitz November 01 Early 2022"]
[White "Safin, Robert"]
[Black "Kvaloy, Aksel Bu"]
[WhiteFideId "34189120"]
[BlackFideId "1528815"]
[WhiteElo "2219"]
[BlackElo "2178"]
[Result "0-1"]
[Round "03"]
[TimeControl "180+1"]
[Date "2022.11.02"]
[WhiteClock "0:00:02"]
[BlackClock "0:00:24"]

1. e4 {[%clk 0:03:00]}  e5 {[%clk 0:02:55]} 2. Nf3 {[%clk 0:03:00]}  Nf6 {[%clk 0:02:55]} 3. Nxe5 {[%clk 0:02:56]}  Nc6 {[%clk 0:02:55]} 4. Nf3 {[%clk 0:02:32]}  Nxe4 {[%clk 0:02:46]} 5. Qe2 {[%clk 0:02:31]}  Qe7 {[%clk 0:02:44]} 6. d3 {[%clk 0:02:31]}  Nf6 {[%clk 0:02:44]} 7. Nc3 {[%clk 0:02:30]}  Qxe2+ {[%clk 0:02:43]} 8. Bxe2 {[%clk 0:02:31]}  Bb4 {[%clk 0:02:39]} 9. Bd2 {[%clk 0:02:25]}  O-O {[%clk 0:02:39]} 10. Nb5 {[%clk 0:02:18]}  Bxd2+ {[%clk 0:02:36]} 11. Kxd2 {[%clk 0:02:17]}  Ne8 {[%clk 0:02:35]} 12. Rae1 {[%clk 0:02:12]}  a6 {[%clk 0:02:35]} 13. Nbd4 {[%clk 0:02:12]}  Nxd4 {[%clk 0:02:34]} 14. Nxd4 {[%clk 0:02:11]}  d6 {[%clk 0:02:35]} 15. Bf3 {[%clk 0:02:07]}  Nf6 {[%clk 0:02:24]} 16. Re7 {[%clk 0:02:04]}  c5 {[%clk 0:02:08]} 17. Nb3 {[%clk 0:02:04]}  Rb8 {[%clk 0:02:08]} 18. Na5 {[%clk 0:02:02]}  Re8 {[%clk 0:02:05]} 19. Rc7 {[%clk 0:01:28]}  d5 {[%clk 0:01:46]} 20. Re1 {[%clk 0:00:59]}  Kf8 {[%clk 0:01:18]} 21. Rxe8+ {[%clk 0:00:16]}  Nxe8 {[%clk 0:01:19]} 22. Rxc5 {[%clk 0:00:16]}  b6 {[%clk 0:01:16]} 23. Nc6 {[%clk 0:00:16]}  bxc5 {[%clk 0:01:06]} 24. Nxb8 {[%clk 0:00:16]}  Ke7 {[%clk 0:01:02]} 25. Bxd5 {[%clk 0:00:10]}  Kd6 {[%clk 0:01:02]} 26. Bf3 {[%clk 0:00:04]}  g5 {[%clk 0:00:55]} 27. h3 {[%clk 0:00:02]}  h5 {[%clk 0:00:52]} 28. Bxh5 {[%clk 0:00:01]}  Kc7 {[%clk 0:00:52]} 29. Bxf7 {[%clk 0:00:01]}  Nf6 {[%clk 0:00:52]} 30. Nxa6+ {[%clk 0:00:01]}  Bxa6 {[%clk 0:00:52]} 31. g3 {[%clk 0:00:01]}  Kd6 {[%clk 0:00:50]} 32. h4 {[%clk 0:00:01]}  gxh4 {[%clk 0:00:49]} 33. gxh4 {[%clk 0:00:02]}  Ng4 {[%clk 0:00:50]} 34. c3 {[%clk 0:00:03]}  Nh6 {[%clk 0:00:51]} 35. Bh5 {[%clk 0:00:02]}  Bb7 {[%clk 0:00:50]} 36. Be2 {[%clk 0:00:02]}  Ke5 {[%clk 0:00:51]} 37. b4 {[%clk 0:00:03]}  cxb4 {[%clk 0:00:50]} 38. cxb4 {[%clk 0:00:04]}  Bc6 {[%clk 0:00:50]} 39. a3 {[%clk 0:00:03]}  Kd4 {[%clk 0:00:51]} 40. f4 {[%clk 0:00:02]}  Bd7 {[%clk 0:00:49]} 41. Bd1 {[%clk 0:00:02]}  Nf5 {[%clk 0:00:46]} 42. a4 {[%clk 0:00:02]}  Nxh4 {[%clk 0:00:46]} 43. a5 {[%clk 0:00:02]}  Bb5 {[%clk 0:00:45]} 44. Bc2 {[%clk 0:00:01]}  Nf5 {[%clk 0:00:35]} 45. Ke2 {[%clk 0:00:02]}  Ne3 {[%clk 0:00:35]} 46. Bb1 {[%clk 0:00:01]}  Nd5 {[%clk 0:00:35]} 47. Kd2 {[%clk 0:00:01]}  Nxf4 {[%clk 0:00:33]} 48. Ba2 {[%clk 0:00:01]}  Nxd3 {[%clk 0:00:33]} 49. Bg8 {[%clk 0:00:02]}  Nxb4 {[%clk 0:00:33]} 50. Bh7 {[%clk 0:00:02]}  Nc6 {[%clk 0:00:33]} 51. Bg8 {[%clk 0:00:02]}  Nxa5 {[%clk 0:00:33]} 52. Bh7 {[%clk 0:00:03]}  Nc4+ {[%clk 0:00:34]} 53. Kc2 {[%clk 0:00:03]}  Ne3+ {[%clk 0:00:34]} 54. Kc1 {[%clk 0:00:03]}  Kc3 {[%clk 0:00:34]} 55. Bg6 {[%clk 0:00:03]}  Bd7 {[%clk 0:00:33]} 56. Bh7 {[%clk 0:00:03]}  Be8 {[%clk 0:00:33]} 57. Be4 {[%clk 0:00:03]}  Bf7 {[%clk 0:00:33]} 58. Bh7 {[%clk 0:00:03]}  Kd4 {[%clk 0:00:34]} 59. Bb1 {[%clk 0:00:01]}  Nc4 {[%clk 0:00:35]} 60. Bc2 {[%clk 0:00:01]}  Kc3 {[%clk 0:00:35]} 61. Bb1 {[%clk 0:00:01]}  Na5 {[%clk 0:00:34]} 62. Bc2 {[%clk 0:00:01]}  Bh5 {[%clk 0:00:35]} 63. Bd1 {[%clk 0:00:01]}  Bg6 {[%clk 0:00:35]} 64. Bc2 {[%clk 0:00:02]}  Bh5 {[%clk 0:00:31]} 65. Bd1 {[%clk 0:00:03]}  Bf7 {[%clk 0:00:32]} 66. Bc2 {[%clk 0:00:04]}  Nb7 {[%clk 0:00:29]} 67. Bd1 {[%clk 0:00:04]}  Nc5 {[%clk 0:00:29]} 68. Bc2 {[%clk 0:00:04]}  Ba2 {[%clk 0:00:25]} 69. Bh7 {[%clk 0:00:03]}  Bb3 {[%clk 0:00:25]} 70. Bc2 {[%clk 0:00:03]}  Bd5 {[%clk 0:00:26]} 71. Kd1 {[%clk 0:00:02]}  Bf3+ {[%clk 0:00:23]} 72. Kc1 {[%clk 0:00:02]}  Be2 {[%clk 0:00:24]} 0-1


[Site "https://www.chess.com"]

[Event "Titled Tuesday Blitz November 01 Early 2022"]
[White "Salem, A.R. Saleh"]
[Black "Kakabayev, Mergen"]
[WhiteFideId "9301348"]
[BlackFideId "14002990"]
[WhiteElo "2628"]
[BlackElo "2302"]
[Result "1-0"]
[Round "03"]
[TimeControl "180+1"]
[Date "2022.11.02"]
[WhiteClock "0:02:28"]
[BlackClock "0:01:31"]

1. d4 {[%clk 0:03:00]}  d5 {[%clk 0:02:59]} 2. c4 {[%clk 0:03:01]}  c6 {[%clk 0:03:00]} 3. Nc3 {[%clk 0:03:01]}  Nf6 {[%clk 0:03:00]} 4. Nf3 {[%clk 0:03:02]}  e6 {[%clk 0:03:00]} 5. g3 {[%clk 0:03:02]}  Nbd7 {[%clk 0:02:59]} 6. Bg2 {[%clk 0:03:03]}  dxc4 {[%clk 0:02:59]} 7. O-O {[%clk 0:03:03]}  b5 {[%clk 0:02:57]} 8. e4 {[%clk 0:03:02]}  Bb7 {[%clk 0:02:56]} 9. e5 {[%clk 0:03:03]}  Nd5 {[%clk 0:02:55]} 10. Ng5 {[%clk 0:03:04]}  Be7 {[%clk 0:02:52]} 11. Qh5 {[%clk 0:03:04]}  g6 {[%clk 0:02:51]} 12. Qh6 {[%clk 0:03:04]}  Bf8 {[%clk 0:02:50]} 13. Qh3 {[%clk 0:03:05]}  Be7 {[%clk 0:02:48]} 14. Nce4 {[%clk 0:03:05]}  c5 {[%clk 0:02:46]} 15. Nxe6 {[%clk 0:02:58]}  fxe6 {[%clk 0:02:43]} 16. Qxe6 {[%clk 0:02:59]}  Nf8 {[%clk 0:02:33]} 17. Qg4 {[%clk 0:02:57]}  cxd4 {[%clk 0:02:29]} 18. Re1 {[%clk 0:02:55]}  Bc8 {[%clk 0:02:20]} 19. Nd6+ {[%clk 0:02:52]}  Bxd6 {[%clk 0:01:46]} 20. exd6+ {[%clk 0:02:53]}  Ne3 {[%clk 0:01:46]} 21. Qxd4 {[%clk 0:02:51]}  Kf7 {[%clk 0:01:45]} 22. Bxe3 {[%clk 0:02:49]}  Ne6 {[%clk 0:01:44]} 23. Qe5 {[%clk 0:02:42]}  Rb8 {[%clk 0:01:44]} 24. Bh6 {[%clk 0:02:38]}  Bd7 {[%clk 0:01:41]} 25. Re3 {[%clk 0:02:27]}  Re8 {[%clk 0:01:31]} 26. Bd5 {[%clk 0:02:28]} 1-0


[Site "https://www.chess.com"]

[Event "Titled Tuesday Blitz November 01 Early 2022"]
[White "Salgado Lopez, Ivan"]
[Black "Garv Gaur"]
[WhiteFideId "2257327"]
[BlackFideId "45030839"]
[WhiteElo "2594"]
[BlackElo "1960"]
[Result "1-0"]
[Round "03"]
[TimeControl "180+1"]
[Date "2022.11.02"]
[WhiteClock "0:00:58"]
[BlackClock "0:00:09"]

1. d4 {[%clk 0:03:00]}  Nf6 {[%clk 0:02:57]} 2. c4 {[%clk 0:03:01]}  e6 {[%clk 0:02:57]} 3. Bf4 {[%clk 0:03:01]}  d5 {[%clk 0:02:57]} 4. cxd5 {[%clk 0:03:01]}  exd5 {[%clk 0:02:57]} 5. e3 {[%clk 0:02:59]}  Bd6 {[%clk 0:02:56]} 6. Bxd6 {[%clk 0:02:59]}  Qxd6 {[%clk 0:02:57]} 7. Qc2 {[%clk 0:02:59]}  O-O {[%clk 0:02:57]} 8. Nc3 {[%clk 0:02:59]}  c6 {[%clk 0:02:57]} 9. Bd3 {[%clk 0:03:00]}  Re8 {[%clk 0:02:56]} 10. Nf3 {[%clk 0:02:58]}  a5 {[%clk 0:02:56]} 11. O-O {[%clk 0:02:56]}  Nbd7 {[%clk 0:02:47]} 12. Rae1 {[%clk 0:02:52]}  h6 {[%clk 0:02:29]} 13. h3 {[%clk 0:02:51]}  b5 {[%clk 0:02:20]} 14. e4 {[%clk 0:02:47]}  dxe4 {[%clk 0:02:21]} 15. Nxe4 {[%clk 0:02:47]}  Nxe4 {[%clk 0:02:22]} 16. Bxe4 {[%clk 0:02:48]}  Bb7 {[%clk 0:02:22]} 17. Bh7+ {[%clk 0:02:37]}  Kf8 {[%clk 0:02:22]} 18. Bf5 {[%clk 0:02:34]}  Rxe1 {[%clk 0:02:12]} 19. Rxe1 {[%clk 0:02:34]}  Re8 {[%clk 0:02:13]} 20. Rxe8+ {[%clk 0:02:32]}  Kxe8 {[%clk 0:02:13]} 21. Bxd7+ {[%clk 0:02:31]}  Qxd7 {[%clk 0:02:13]} 22. Qc5 {[%clk 0:02:28]}  f6 {[%clk 0:01:31]} 23. a3 {[%clk 0:02:24]}  Kf7 {[%clk 0:01:30]} 24. Nd2 {[%clk 0:01:56]}  Qd5 {[%clk 0:01:21]} 25. Qxd5+ {[%clk 0:01:55]}  cxd5 {[%clk 0:01:21]} 26. Nb3 {[%clk 0:01:55]}  a4 {[%clk 0:01:20]} 27. Nc1 {[%clk 0:01:51]}  Bc8 {[%clk 0:01:16]} 28. Ne2 {[%clk 0:01:51]}  Ke6 {[%clk 0:01:11]} 29. Nc3 {[%clk 0:01:50]}  Bd7 {[%clk 0:01:11]} 30. f3 {[%clk 0:01:41]}  Kd6 {[%clk 0:01:11]} 31. Kf2 {[%clk 0:01:41]}  Be8 {[%clk 0:01:03]} 32. Ke3 {[%clk 0:01:40]}  g6 {[%clk 0:01:02]} 33. Kd2 {[%clk 0:01:37]}  Bd7 {[%clk 0:01:00]} 34. Nd1 {[%clk 0:01:36]}  Be8 {[%clk 0:00:48]} 35. Kc3 {[%clk 0:01:34]}  Kc6 {[%clk 0:00:45]} 36. Kb4 {[%clk 0:01:28]}  Bf7 {[%clk 0:00:36]} 37. f4 {[%clk 0:01:22]}  Kb6 {[%clk 0:00:34]} 38. Nc3 {[%clk 0:01:20]}  Be6 {[%clk 0:00:29]} 39. h4 {[%clk 0:01:18]}  g5 {[%clk 0:00:26]} 40. hxg5 {[%clk 0:01:17]}  hxg5 {[%clk 0:00:27]} 41. g3 {[%clk 0:01:17]}  Kc6 {[%clk 0:00:17]} 42. Nxb5 {[%clk 0:01:17]}  Bh3 {[%clk 0:00:16]} 43. Nc3 {[%clk 0:01:07]}  Bf1 {[%clk 0:00:11]} 44. Kxa4 {[%clk 0:01:01]}  Bc4 {[%clk 0:00:10]} 45. Nd1 {[%clk 0:00:59]}  Bb5+ {[%clk 0:00:08]} 46. Kb4 {[%clk 0:00:58]}  Be2 {[%clk 0:00:09]} 47. Ne3 {[%clk 0:00:58]}  Bd3 {[%clk 0:00:09]} 48. a4 {[%clk 0:00:58]}  Be2 {[%clk 0:00:09]} 49. Ka5 {[%clk 0:00:58]}  Bd3 {[%clk 0:00:09]} 50. b4 {[%clk 0:00:58]}  Be2 {[%clk 0:00:08]} 51. b5+ {[%clk 0:00:59]}  Kd6 {[%clk 0:00:09]} 52. Kb6 {[%clk 0:00:58]} 1-0


[Site "https://www.chess.com"]

[Event "Titled Tuesday Blitz November 01 Early 2022"]
[White "Schut, Han"]
[Black "Turutin, Alexander"]
[WhiteFideId "1005561"]
[BlackFideId "4180623"]
[WhiteElo "2024"]
[BlackElo "2402"]
[Result "0-1"]
[Round "03"]
[TimeControl "180+1"]
[Date "2022.11.02"]
[WhiteClock "0:00:01"]
[BlackClock "0:00:54"]

1. e4 {[%clk 0:03:00]}  c6 {[%clk 0:02:58]} 2. d4 {[%clk 0:02:59]}  d5 {[%clk 0:02:58]} 3. e5 {[%clk 0:03:00]}  c5 {[%clk 0:02:58]} 4. dxc5 {[%clk 0:02:59]}  e6 {[%clk 0:02:57]} 5. a3 {[%clk 0:02:59]}  Bxc5 {[%clk 0:02:57]} 6. b4 {[%clk 0:02:59]}  Be7 {[%clk 0:02:57]} 7. Bb2 {[%clk 0:02:53]}  Nh6 {[%clk 0:02:54]} 8. Bd3 {[%clk 0:02:38]}  a5 {[%clk 0:02:43]} 9. b5 {[%clk 0:02:29]}  Nd7 {[%clk 0:02:35]} 10. Ne2 {[%clk 0:02:23]}  f6 {[%clk 0:02:32]} 11. Nf4 {[%clk 0:01:19]}  Nxe5 {[%clk 0:02:15]} 12. Bxe5 {[%clk 0:00:40]}  fxe5 {[%clk 0:02:16]} 13. Qh5+ {[%clk 0:00:40]}  Nf7 {[%clk 0:02:16]} 14. Nh3 {[%clk 0:00:15]}  e4 {[%clk 0:02:05]} 15. Be2 {[%clk 0:00:13]}  e5 {[%clk 0:02:01]} 16. Bd1 {[%clk 0:00:07]}  g6 {[%clk 0:01:57]} 17. Qe2 {[%clk 0:00:07]}  Bxh3 {[%clk 0:01:57]} 18. gxh3 {[%clk 0:00:07]}  O-O {[%clk 0:01:57]} 19. c4 {[%clk 0:00:07]}  Ng5 {[%clk 0:01:55]} 20. cxd5 {[%clk 0:00:07]}  Nf3+ {[%clk 0:01:55]} 21. Kf1 {[%clk 0:00:07]}  Bh4 {[%clk 0:01:27]} 22. Qxe4 {[%clk 0:00:03]}  Rf4 {[%clk 0:01:12]} 23. Qe2 {[%clk 0:00:01]}  Qd7 {[%clk 0:00:54]} 0-1


[Site "https://www.chess.com"]

[Event "Titled Tuesday Blitz November 01 Early 2022"]
[White "Shapiro, Daniel"]
[Black "Mihajlov, Sebastian"]
[WhiteFideId "2001780"]
[BlackFideId "1512110"]
[WhiteElo "2257"]
[BlackElo "2464"]
[Result "0-1"]
[Round "03"]
[TimeControl "180+1"]
[Date "2022.11.02"]
[WhiteClock "0:00:01"]
[BlackClock "0:00:18"]

1. d4 {[%clk 0:03:00]}  g6 {[%clk 0:02:57]} 2. e4 {[%clk 0:03:00]}  Bg7 {[%clk 0:02:57]} 3. Nc3 {[%clk 0:03:00]}  a6 {[%clk 0:02:58]} 4. a4 {[%clk 0:03:00]}  d6 {[%clk 0:02:56]} 5. g3 {[%clk 0:02:59]}  Nd7 {[%clk 0:02:53]} 6. Bg2 {[%clk 0:02:58]}  c5 {[%clk 0:02:53]} 7. Nge2 {[%clk 0:02:57]}  Ngf6 {[%clk 0:02:49]} 8. h3 {[%clk 0:02:56]}  O-O {[%clk 0:02:49]} 9. Be3 {[%clk 0:02:56]}  Rb8 {[%clk 0:02:47]} 10. a5 {[%clk 0:02:46]}  Qc7 {[%clk 0:02:22]} 11. O-O {[%clk 0:02:44]}  Rd8 {[%clk 0:02:19]} 12. g4 {[%clk 0:02:32]}  e5 {[%clk 0:02:18]} 13. d5 {[%clk 0:02:23]}  h5 {[%clk 0:02:16]} 14. Ng3 {[%clk 0:02:17]}  hxg4 {[%clk 0:02:12]} 15. hxg4 {[%clk 0:02:17]}  Nf8 {[%clk 0:02:12]} 16. g5 {[%clk 0:02:10]}  N6h7 {[%clk 0:02:08]} 17. Qd2 {[%clk 0:02:01]}  Bd7 {[%clk 0:01:56]} 18. Kh2 {[%clk 0:02:00]}  b5 {[%clk 0:01:50]} 19. axb6 {[%clk 0:01:22]}  Rxb6 {[%clk 0:01:50]} 20. Ra2 {[%clk 0:01:20]}  Rb4 {[%clk 0:01:39]} 21. Rfa1 {[%clk 0:01:12]}  Rdb8 {[%clk 0:01:27]} 22. Nd1 {[%clk 0:01:01]}  Bc8 {[%clk 0:01:17]} 23. Bf1 {[%clk 0:01:00]}  Qd7 {[%clk 0:01:09]} 24. Bxa6 {[%clk 0:00:57]}  Qh3+ {[%clk 0:01:08]} 25. Kg1 {[%clk 0:00:57]}  Bxa6 {[%clk 0:01:05]} 26. Rxa6 {[%clk 0:00:56]}  f5 {[%clk 0:00:58]} 27. Rxd6 {[%clk 0:00:32]}  f4 {[%clk 0:00:57]} 28. Bxf4 {[%clk 0:00:33]}  exf4 {[%clk 0:00:57]} 29. Qxf4 {[%clk 0:00:33]}  R8b7 {[%clk 0:00:40]} 30. Ra8 {[%clk 0:00:25]}  Rf7 {[%clk 0:00:39]} 31. Qe3 {[%clk 0:00:21]}  Qg4 {[%clk 0:00:39]} 32. Nc3 {[%clk 0:00:16]}  Nxg5 {[%clk 0:00:36]} 33. f4 {[%clk 0:00:09]}  Bd4 {[%clk 0:00:32]} 34. Rxg6+ {[%clk 0:00:05]}  Kh7 {[%clk 0:00:30]} 35. Qxd4 {[%clk 0:00:04]}  cxd4 {[%clk 0:00:30]} 36. Rxg5 {[%clk 0:00:04]}  Qxf4 {[%clk 0:00:28]} 37. Rh5+ {[%clk 0:00:02]}  Kg6 {[%clk 0:00:17]} 38. Ra6+ {[%clk 0:00:01]}  Rf6 {[%clk 0:00:18]} 0-1


[Site "https://www.chess.com"]

[Event "Titled Tuesday Blitz November 01 Early 2022"]
[White "Shimelkov, Vasiliy"]
[Black "Bogaudinov, Rushan"]
[WhiteFideId "13701630"]
[BlackFideId "4129288"]
[WhiteElo "2073"]
[BlackElo "1945"]
[Result "1/2-1/2"]
[Round "03"]
[TimeControl "180+1"]
[Date "2022.11.02"]
[WhiteClock "0:00:12"]
[BlackClock "0:00:16"]

1. d4 {[%clk 0:03:00]}  Nf6 {[%clk 0:02:59]} 2. c4 {[%clk 0:03:00]}  e6 {[%clk 0:03:00]} 3. g3 {[%clk 0:02:59]}  d5 {[%clk 0:03:00]} 4. Nf3 {[%clk 0:02:59]}  Bb4+ {[%clk 0:02:58]} 5. Bd2 {[%clk 0:02:59]}  a5 {[%clk 0:02:59]} 6. Qc2 {[%clk 0:02:54]}  O-O {[%clk 0:02:57]} 7. Bg2 {[%clk 0:02:52]}  Nc6 {[%clk 0:02:57]} 8. O-O {[%clk 0:02:51]}  a4 {[%clk 0:02:55]} 9. a3 {[%clk 0:02:35]}  Be7 {[%clk 0:02:51]} 10. cxd5 {[%clk 0:02:33]}  exd5 {[%clk 0:02:50]} 11. Nc3 {[%clk 0:02:33]}  Bg4 {[%clk 0:02:45]} 12. Be3 {[%clk 0:02:30]}  Na5 {[%clk 0:02:39]} 13. Rfd1 {[%clk 0:02:27]}  Nc4 {[%clk 0:02:33]} 14. Bf4 {[%clk 0:02:25]}  Re8 {[%clk 0:02:06]} 15. Ne5 {[%clk 0:02:12]}  c6 {[%clk 0:02:00]} 16. Nxc4 {[%clk 0:02:09]}  dxc4 {[%clk 0:02:00]} 17. h3 {[%clk 0:02:08]}  Bh5 {[%clk 0:01:59]} 18. Rd2 {[%clk 0:01:56]}  Nd5 {[%clk 0:01:55]} 19. Nxa4 {[%clk 0:01:44]}  Nxf4 {[%clk 0:01:53]} 20. gxf4 {[%clk 0:01:44]}  b5 {[%clk 0:01:50]} 21. Nc5 {[%clk 0:01:34]}  Qc7 {[%clk 0:01:33]} 22. e3 {[%clk 0:01:27]}  Bf8 {[%clk 0:01:18]} 23. Re1 {[%clk 0:01:07]}  Rac8 {[%clk 0:01:13]} 24. Qf5 {[%clk 0:00:56]}  Bg6 {[%clk 0:01:11]} 25. Qg4 {[%clk 0:00:51]}  h5 {[%clk 0:01:09]} 26. Qg3 {[%clk 0:00:50]}  Rcd8 {[%clk 0:00:50]} 27. Qf3 {[%clk 0:00:39]}  Bxc5 {[%clk 0:00:47]} 28. Qxc6 {[%clk 0:00:37]}  Qxc6 {[%clk 0:00:44]} 29. Bxc6 {[%clk 0:00:37]}  Re6 {[%clk 0:00:39]} 30. Bxb5 {[%clk 0:00:34]}  Rxd4 {[%clk 0:00:35]} 31. Rxd4 {[%clk 0:00:19]}  Bxd4 {[%clk 0:00:36]} 32. Bxc4 {[%clk 0:00:20]}  Re7 {[%clk 0:00:36]} 33. b4 {[%clk 0:00:18]}  h4 {[%clk 0:00:33]} 34. Rd1 {[%clk 0:00:15]}  Bb2 {[%clk 0:00:32]} 35. a4 {[%clk 0:00:14]}  Bh5 {[%clk 0:00:32]} 36. Rb1 {[%clk 0:00:13]}  Bc3 {[%clk 0:00:32]} 37. b5 {[%clk 0:00:14]}  Ba5 {[%clk 0:00:31]} 38. b6 {[%clk 0:00:12]}  Bf3 {[%clk 0:00:31]} 39. Ba6 {[%clk 0:00:11]}  Rd7 {[%clk 0:00:28]} 40. b7 {[%clk 0:00:10]}  Bc7 {[%clk 0:00:28]} 41. b8=Q+ {[%clk 0:00:10]}  Bxb8 {[%clk 0:00:27]} 42. Rxb8+ {[%clk 0:00:10]}  Kh7 {[%clk 0:00:28]} 43. Rb1 {[%clk 0:00:10]}  Rd2 {[%clk 0:00:23]} 44. Ra1 {[%clk 0:00:09]}  Kg6 {[%clk 0:00:17]} 45. Bb5 {[%clk 0:00:09]}  Rd5 {[%clk 0:00:15]} 46. Bf1 {[%clk 0:00:08]}  Ra5 {[%clk 0:00:15]} 47. Bg2 {[%clk 0:00:08]}  Be2 {[%clk 0:00:12]} 48. Be4+ {[%clk 0:00:07]}  f5 {[%clk 0:00:12]} 49. Bc6 {[%clk 0:00:07]}  Kf6 {[%clk 0:00:10]} 50. Bg2 {[%clk 0:00:05]}  Bc4 {[%clk 0:00:08]} 51. Bf1 {[%clk 0:00:05]}  Bb3 {[%clk 0:00:08]} 52. Bb5 {[%clk 0:00:05]}  Bd5 {[%clk 0:00:07]} 53. Rd1 {[%clk 0:00:05]}  Ke6 {[%clk 0:00:08]} 54. Rc1 {[%clk 0:00:05]}  Ra7 {[%clk 0:00:07]} 55. Rc8 {[%clk 0:00:05]}  Kd6 {[%clk 0:00:06]} 56. Rd8+ {[%clk 0:00:04]}  Kc5 {[%clk 0:00:06]} 57. Rh8 {[%clk 0:00:04]}  Be4 {[%clk 0:00:05]} 58. Rxh4 {[%clk 0:00:04]}  Kb4 {[%clk 0:00:05]} 59. Rh8 {[%clk 0:00:04]}  Rc7 {[%clk 0:00:05]} 60. Rf8 {[%clk 0:00:03]}  Rc1+ {[%clk 0:00:05]} 61. Kh2 {[%clk 0:00:03]}  Rf1 {[%clk 0:00:05]} 62. Kg3 {[%clk 0:00:03]}  Rg1+ {[%clk 0:00:05]} 63. Kh4 {[%clk 0:00:03]}  Rg2 {[%clk 0:00:05]} 64. Bd7 {[%clk 0:00:02]}  Rxf2 {[%clk 0:00:05]} 65. Bxf5 {[%clk 0:00:03]}  Bc6 {[%clk 0:00:05]} 66. Be6 {[%clk 0:00:03]}  Bxa4 {[%clk 0:00:05]} 67. f5 {[%clk 0:00:03]}  Bd1 {[%clk 0:00:04]} 68. Bd7 {[%clk 0:00:03]}  Re2 {[%clk 0:00:03]} 69. e4 {[%clk 0:00:04]}  Rxe4+ {[%clk 0:00:03]} 70. Kg3 {[%clk 0:00:04]}  Re7 {[%clk 0:00:04]} 71. Be6 {[%clk 0:00:04]}  Kc5 {[%clk 0:00:04]} 72. Rc8+ {[%clk 0:00:04]}  Kb6 {[%clk 0:00:04]} 73. Rd8 {[%clk 0:00:04]}  Bh5 {[%clk 0:00:03]} 74. Rd7 {[%clk 0:00:04]}  Rxd7 {[%clk 0:00:03]} 75. Bxd7 {[%clk 0:00:04]}  Kc7 {[%clk 0:00:04]} 76. Be6 {[%clk 0:00:04]}  Kd6 {[%clk 0:00:05]} 77. Kf4 {[%clk 0:00:05]}  g6 {[%clk 0:00:03]} 78. Kg5 {[%clk 0:00:05]}  gxf5 {[%clk 0:00:01]} 79. Bxf5 {[%clk 0:00:05]}  Bf7 {[%clk 0:00:01]} 80. h4 {[%clk 0:00:06]}  Ke7 {[%clk 0:00:02]} 81. h5 {[%clk 0:00:06]}  Kf8 {[%clk 0:00:03]} 82. h6 {[%clk 0:00:07]}  Kg8 {[%clk 0:00:03]} 83. h7+ {[%clk 0:00:07]}  Kh8 {[%clk 0:00:03]} 84. Kf4 {[%clk 0:00:08]}  Bd5 {[%clk 0:00:04]} 85. Ke5 {[%clk 0:00:08]}  Bc4 {[%clk 0:00:05]} 86. Kd6 {[%clk 0:00:08]}  Bb3 {[%clk 0:00:05]} 87. Kc7 {[%clk 0:00:09]}  Ba2 {[%clk 0:00:06]} 88. Kd6 {[%clk 0:00:08]}  Bb3 {[%clk 0:00:07]} 89. Ke5 {[%clk 0:00:08]}  Ba2 {[%clk 0:00:08]} 90. Kd4 {[%clk 0:00:09]}  Bb3 {[%clk 0:00:09]} 91. Kc5 {[%clk 0:00:09]}  Ba2 {[%clk 0:00:10]} 92. Kb4 {[%clk 0:00:10]}  Bb3 {[%clk 0:00:11]} 93. Ka3 {[%clk 0:00:10]}  Kg7 {[%clk 0:00:12]} 94. Kxb3 {[%clk 0:00:10]}  Kh8 {[%clk 0:00:13]} 95. Kb4 {[%clk 0:00:11]}  Kg7 {[%clk 0:00:14]} 96. Kc5 {[%clk 0:00:11]}  Kh8 {[%clk 0:00:14]} 97. Kd6 {[%clk 0:00:12]}  Kg7 {[%clk 0:00:15]} 98. Ke7 {[%clk 0:00:12]}  Kh8 {[%clk 0:00:16]} 99. Kf8 {[%clk 0:00:12]} 1/2-1/2


[Site "https://www.chess.com"]